[Event "Titled Tuesday Blitz July 11 Early 2023"]
[White "Ibarra Jerez, Jose Carlos"]
[Black "Atanasov, Radislav"]
[WhiteFideId "2226332"]
[BlackFideId "2901471"]
[WhiteElo "2903"]
[BlackElo "2205"]
[Result "1-0"]
[Round "4"]
[TimeControl "180+2"]
[Date "2023.07.11"]
[WhiteClock "0:00:09"]
[BlackClock "0:00:04"]
[Board "121"]

1. b3 {[%clk 0:03:00]}  e5 {[%clk 0:02:59]} 2. Bb2 {[%clk 0:02:59]}  Nc6 {[%clk 0:02:58]} 3. e3 {[%clk 0:02:59]}  Nge7 {[%clk 0:02:59]} 4. Nf3 {[%clk 0:02:57]}  d6 {[%clk 0:02:57]} 5. d4 {[%clk 0:02:57]}  e4 {[%clk 0:02:57]} 6. Nfd2 {[%clk 0:02:51]}  d5 {[%clk 0:02:56]} 7. c4 {[%clk 0:02:51]}  Bf5 {[%clk 0:02:46]} 8. Nc3 {[%clk 0:02:49]}  dxc4 {[%clk 0:02:41]} 9. bxc4 {[%clk 0:02:45]}  Qd7 {[%clk 0:02:27]} 10. Ndxe4 {[%clk 0:02:42]}  O-O-O {[%clk 0:02:25]} 11. d5 {[%clk 0:02:34]}  Na5 {[%clk 0:01:47]} 12. Nc5 {[%clk 0:02:19]}  Qd6 {[%clk 0:01:42]} 13. Qd4 {[%clk 0:02:14]}  Nec6 {[%clk 0:01:31]} 14. dxc6 {[%clk 0:02:05]}  Qxc5 {[%clk 0:01:31]} 15. cxb7+ {[%clk 0:02:04]}  Nxb7 {[%clk 0:01:24]} 16. Qxc5 {[%clk 0:01:45]}  Nxc5 {[%clk 0:01:24]} 17. Rd1 {[%clk 0:01:45]}  Nd3+ {[%clk 0:01:22]} 18. Bxd3 {[%clk 0:01:43]}  Bxd3 {[%clk 0:01:22]} 19. f3 {[%clk 0:01:22]}  Bc5 {[%clk 0:01:21]} 20. Kf2 {[%clk 0:01:21]}  Bxc4 {[%clk 0:01:21]} 21. Ne4 {[%clk 0:01:19]}  Bb6 {[%clk 0:01:19]} 22. Bxg7 {[%clk 0:01:17]}  Rhe8 {[%clk 0:01:07]} 23. Rxd8+ {[%clk 0:00:55]}  Kxd8 {[%clk 0:01:07]} 24. Bf6+ {[%clk 0:00:49]}  Kc8 {[%clk 0:01:07]} 25. Rc1 {[%clk 0:00:48]}  Rxe4 {[%clk 0:00:48]} 26. fxe4 {[%clk 0:00:49]}  Bxa2 {[%clk 0:00:48]} 27. Bd4 {[%clk 0:00:48]}  Be6 {[%clk 0:00:46]} 28. Kf3 {[%clk 0:00:45]}  Kb7 {[%clk 0:00:46]} 29. Kf4 {[%clk 0:00:45]}  a5 {[%clk 0:00:45]} 30. g4 {[%clk 0:00:42]}  a4 {[%clk 0:00:41]} 31. g5 {[%clk 0:00:38]}  a3 {[%clk 0:00:40]} 32. Be5 {[%clk 0:00:20]}  a2 {[%clk 0:00:39]} 33. h4 {[%clk 0:00:20]}  Ka6 {[%clk 0:00:24]} 34. h5 {[%clk 0:00:20]}  Kb5 {[%clk 0:00:24]} 35. Ba1 {[%clk 0:00:20]}  Kb4 {[%clk 0:00:20]} 36. Re1 {[%clk 0:00:16]}  Kb3 {[%clk 0:00:19]} 37. Ke5 {[%clk 0:00:16]}  Kc2 {[%clk 0:00:19]} 38. g6 {[%clk 0:00:15]}  hxg6 {[%clk 0:00:18]} 39. hxg6 {[%clk 0:00:15]}  Bb3 {[%clk 0:00:08]} 40. g7 {[%clk 0:00:14]}  f6+ {[%clk 0:00:07]} 41. Kxf6 {[%clk 0:00:15]}  Ba5 {[%clk 0:00:06]} 42. Rg1 {[%clk 0:00:14]}  Bc3+ {[%clk 0:00:06]} 43. Bxc3 {[%clk 0:00:13]}  Kxc3 {[%clk 0:00:06]} 44. Ra1 {[%clk 0:00:05]}  Kb2 {[%clk 0:00:06]} 45. Rxa2+ {[%clk 0:00:06]}  Kxa2 {[%clk 0:00:06]} 46. e5 {[%clk 0:00:06]}  c5 {[%clk 0:00:04]} 47. e6 {[%clk 0:00:07]}  Bxe6 {[%clk 0:00:01]} 48. Kxe6 {[%clk 0:00:07]}  c4 {[%clk 0:00:02]} 49. g8=Q {[%clk 0:00:08]}  c3 {[%clk 0:00:02]} 50. Ke5+ {[%clk 0:00:08]}  Kb1 {[%clk 0:00:02]} 51. Qb8+ {[%clk 0:00:08]}  Kc1 {[%clk 0:00:02]} 52. Kd4 {[%clk 0:00:07]}  c2 {[%clk 0:00:03]} 53. Kc3 {[%clk 0:00:08]}  Kd1 {[%clk 0:00:03]} 54. Qd6+ {[%clk 0:00:07]}  Kc1 {[%clk 0:00:03]} 55. Qd2+ {[%clk 0:00:08]}  Kb1 {[%clk 0:00:03]} 56. Qxc2+ {[%clk 0:00:09]}  Ka1 {[%clk 0:00:04]} 57. Qb2# {[%clk 0:00:09]} 1-0


[Site "https://www.chess.com"]

[Event "Titled Tuesday Blitz July 11 Early 2023"]
[White "Jarovinsky, Alexey"]
[Black "Nikologorsky, Matfei"]
[WhiteFideId "14115131"]
[BlackFideId "24102474"]
[WhiteElo "2712"]
[BlackElo "2420"]
[Result "1-0"]
[Round "4"]
[TimeControl "180+2"]
[Date "2023.07.11"]
[WhiteClock "0:00:05"]
[BlackClock "0:00:00"]
[Board "123"]

1. Nc3 {[%clk 0:02:38]}  c5 {[%clk 0:02:55]} 2. e4 {[%clk 0:02:38]}  e6 {[%clk 0:02:54]} 3. g3 {[%clk 0:02:35]}  d5 {[%clk 0:02:52]} 4. Bg2 {[%clk 0:02:34]}  d4 {[%clk 0:02:46]} 5. Nce2 {[%clk 0:02:32]}  Nc6 {[%clk 0:02:43]} 6. d3 {[%clk 0:02:32]}  e5 {[%clk 0:02:42]} 7. f4 {[%clk 0:02:31]}  Nf6 {[%clk 0:02:41]} 8. h3 {[%clk 0:02:27]}  Bd6 {[%clk 0:02:41]} 9. Nf3 {[%clk 0:02:26]}  Qc7 {[%clk 0:02:41]} 10. O-O {[%clk 0:02:25]}  O-O {[%clk 0:02:28]} 11. f5 {[%clk 0:02:25]}  Ne8 {[%clk 0:02:19]} 12. g4 {[%clk 0:02:24]}  b5 {[%clk 0:02:17]} 13. g5 {[%clk 0:02:14]}  c4 {[%clk 0:02:17]} 14. Ng3 {[%clk 0:02:05]}  cxd3 {[%clk 0:01:37]} 15. cxd3 {[%clk 0:02:06]}  Nb4 {[%clk 0:01:31]} 16. Rf2 {[%clk 0:02:05]}  Bd7 {[%clk 0:01:26]} 17. a3 {[%clk 0:02:01]}  Nc6 {[%clk 0:01:26]} 18. Bd2 {[%clk 0:01:54]}  a5 {[%clk 0:01:24]} 19. h4 {[%clk 0:01:49]}  a4 {[%clk 0:01:21]} 20. Kh2 {[%clk 0:01:32]}  b4 {[%clk 0:01:18]} 21. Bh3 {[%clk 0:01:20]}  bxa3 {[%clk 0:01:16]} 22. bxa3 {[%clk 0:01:18]}  Na5 {[%clk 0:01:10]} 23. Bxa5 {[%clk 0:01:13]}  Rxa5 {[%clk 0:01:07]} 24. f6 {[%clk 0:01:10]}  Bxh3 {[%clk 0:01:03]} 25. Kxh3 {[%clk 0:00:55]}  Qd7+ {[%clk 0:01:03]} 26. Kg2 {[%clk 0:00:52]}  g6 {[%clk 0:00:53]} 27. h5 {[%clk 0:00:48]}  Nc7 {[%clk 0:00:50]} 28. hxg6 {[%clk 0:00:34]}  fxg6 {[%clk 0:00:50]} 29. Qh1 {[%clk 0:00:27]}  Ne6 {[%clk 0:00:49]} 30. Ne2 {[%clk 0:00:27]}  Rb5 {[%clk 0:00:44]} 31. Ra2 {[%clk 0:00:26]}  Rfb8 {[%clk 0:00:40]} 32. Qh6 {[%clk 0:00:20]}  Qf7 {[%clk 0:00:37]} 33. Kg3 {[%clk 0:00:19]}  Rb2 {[%clk 0:00:34]} 34. Neg1 {[%clk 0:00:17]}  Rxf2 {[%clk 0:00:32]} 35. Kxf2 {[%clk 0:00:15]}  Rb3 {[%clk 0:00:32]} 36. Ne1 {[%clk 0:00:14]}  Bxa3 {[%clk 0:00:27]} 37. Ngf3 {[%clk 0:00:12]}  Qc7 {[%clk 0:00:17]} 38. Qh3 {[%clk 0:00:11]}  Nf4 {[%clk 0:00:16]} 39. Qg4 {[%clk 0:00:09]}  Rb2+ {[%clk 0:00:15]} 40. Rxb2 {[%clk 0:00:09]}  Bxb2 {[%clk 0:00:16]} 41. Ng2 {[%clk 0:00:08]}  Nxg2 {[%clk 0:00:15]} 42. Qe6+ {[%clk 0:00:07]}  Kf8 {[%clk 0:00:15]} 43. Nxe5 {[%clk 0:00:07]}  Nf4 {[%clk 0:00:05]} 44. Nd7+ {[%clk 0:00:06]}  Qxd7 {[%clk 0:00:05]} 45. Qxd7 {[%clk 0:00:07]}  Ba3 {[%clk 0:00:02]} 46. Qg7+ {[%clk 0:00:05]}  Ke8 {[%clk 0:00:02]} 47. Qg8+ {[%clk 0:00:05]}  Kd7 {[%clk 0:00:02]} 48. Qxh7+ {[%clk 0:00:05]}  Ke6 {[%clk 0:00:00]} 49. Qg8+ {[%clk 0:00:05]} 1-0


[Site "https://www.chess.com"]

[Event "Titled Tuesday Blitz July 11 Early 2023"]
[White "Matveeva, Olga"]
[Black "Bryakin, Mikhail"]
[WhiteFideId "24107018"]
[BlackFideId "4165314"]
[WhiteElo "2414"]
[BlackElo "2704"]
[Result "1-0"]
[Round "4"]
[TimeControl "180+2"]
[Date "2023.07.11"]
[WhiteClock "0:00:18"]
[BlackClock "0:00:00"]
[Board "124"]

1. d4 {[%clk 0:03:00]}  g6 {[%clk 0:02:58]} 2. c4 {[%clk 0:03:01]}  Bg7 {[%clk 0:02:59]} 3. Nf3 {[%clk 0:02:58]}  d6 {[%clk 0:02:58]} 4. g3 {[%clk 0:02:58]}  c5 {[%clk 0:02:58]} 5. d5 {[%clk 0:02:57]}  f5 {[%clk 0:02:59]} 6. Bg2 {[%clk 0:02:55]}  Nf6 {[%clk 0:02:59]} 7. h4 {[%clk 0:02:54]}  O-O {[%clk 0:02:59]} 8. Nc3 {[%clk 0:02:49]}  e5 {[%clk 0:03:00]} 9. dxe6 {[%clk 0:02:48]}  Bxe6 {[%clk 0:03:00]} 10. Qd3 {[%clk 0:02:34]}  Nc6 {[%clk 0:03:00]} 11. Bg5 {[%clk 0:02:30]}  Nb4 {[%clk 0:02:59]} 12. Qd2 {[%clk 0:02:22]}  Bxc4 {[%clk 0:03:00]} 13. h5 {[%clk 0:02:21]}  Qe7 {[%clk 0:02:59]} 14. hxg6 {[%clk 0:02:15]}  hxg6 {[%clk 0:03:00]} 15. a3 {[%clk 0:02:02]}  Nc6 {[%clk 0:03:00]} 16. O-O-O {[%clk 0:01:49]}  Rad8 {[%clk 0:03:00]} 17. Bh6 {[%clk 0:01:43]}  b5 {[%clk 0:03:00]} 18. Bxg7 {[%clk 0:01:40]}  Qxg7 {[%clk 0:03:01]} 19. Ng5 {[%clk 0:01:39]}  b4 {[%clk 0:03:00]} 20. Bxc6 {[%clk 0:01:37]}  bxc3 {[%clk 0:03:00]} 21. Qxc3 {[%clk 0:01:38]}  d5 {[%clk 0:02:59]} 22. Ne6 {[%clk 0:01:35]}  Qe7 {[%clk 0:03:00]} 23. Nxf8 {[%clk 0:01:32]}  Qxf8 {[%clk 0:03:01]} 24. Rh4 {[%clk 0:01:18]}  Rd6 {[%clk 0:03:01]} 25. Ba4 {[%clk 0:01:14]}  Kf7 {[%clk 0:03:01]} 26. Rdh1 {[%clk 0:01:13]}  Bxe2 {[%clk 0:02:53]} 27. Rh7+ {[%clk 0:01:05]}  Nxh7 {[%clk 0:02:54]} 28. Rxh7+ {[%clk 0:01:05]}  Ke6 {[%clk 0:02:55]} 29. Qe3+ {[%clk 0:01:03]}  Kf6 {[%clk 0:02:55]} 30. Qxe2 {[%clk 0:00:50]}  Re6 {[%clk 0:02:56]} 31. Qd3 {[%clk 0:00:45]}  Qd6 {[%clk 0:02:56]} 32. f4 {[%clk 0:00:37]}  d4 {[%clk 0:02:55]} 33. Bb3 {[%clk 0:00:36]}  Re7 {[%clk 0:02:55]} 34. Rxe7 {[%clk 0:00:34]}  Qxe7 {[%clk 0:02:55]} 35. Kd2 {[%clk 0:00:34]}  Qb7 {[%clk 0:02:55]} 36. Qc4 {[%clk 0:00:33]}  Qg2+ {[%clk 0:02:55]} 37. Kc1 {[%clk 0:00:33]}  Qg1+ {[%clk 0:02:55]} 38. Kc2 {[%clk 0:00:33]}  Qg2+ {[%clk 0:02:52]} 39. Kb1 {[%clk 0:00:33]}  Qe4+ {[%clk 0:02:52]} 40. Ka2 {[%clk 0:00:32]}  Qe7 {[%clk 0:02:53]} 41. Qd5 {[%clk 0:00:27]}  a5 {[%clk 0:02:50]} 42. Qa8 {[%clk 0:00:24]}  Kg7 {[%clk 0:02:49]} 43. Qxa5 {[%clk 0:00:23]}  g5 {[%clk 0:02:48]} 44. fxg5 {[%clk 0:00:22]}  Kg6 {[%clk 0:02:49]} 45. Qd2 {[%clk 0:00:20]}  Qe4 {[%clk 0:02:48]} 46. Qf4 {[%clk 0:00:19]}  Qc6 {[%clk 0:02:47]} 47. Qe5 {[%clk 0:00:18]}  Kxg5 {[%clk 0:02:46]} 48. Qg7+ {[%clk 0:00:18]}  Qg6 {[%clk 0:02:47]} 49. Qxg6+ {[%clk 0:00:18]}  Kxg6 {[%clk 0:02:48]} 50. a4 {[%clk 0:00:18]}  Kg5 {[%clk 0:02:48]} 51. a5 {[%clk 0:00:19]}  Kg4 {[%clk 0:02:49]} 52. a6 {[%clk 0:00:20]}  Kxg3 {[%clk 0:02:50]} 53. a7 {[%clk 0:00:20]}  f4 {[%clk 0:02:51]} 54. a8=Q {[%clk 0:00:21]}  f3 {[%clk 0:02:52]} 55. Qe4 {[%clk 0:00:21]}  f2 {[%clk 0:02:53]} 56. Qg6+ {[%clk 0:00:21]}  Kf4 {[%clk 0:02:53]} 57. Bc4 {[%clk 0:00:21]}  Ke3 {[%clk 0:02:54]} 58. Qf5 {[%clk 0:00:21]}  d3 {[%clk 0:00:00]} 59. Qxd3+ {[%clk 0:00:18]} 1-0


[Site "https://www.chess.com"]

[Event "Titled Tuesday Blitz July 11 Early 2023"]
[White "Szyszylo, Rafal"]
[Black "Iskusnyh, Sergei"]
[WhiteFideId "1109626"]
[BlackFideId "4120027"]
[WhiteElo "2410"]
[BlackElo "2609"]
[Result "0-1"]
[Round "4"]
[TimeControl "180+2"]
[Date "2023.07.11"]
[WhiteClock "0:00:00"]
[BlackClock "0:00:28"]
[Board "126"]

1. e4 {[%clk 0:03:00]}  e6 {[%clk 0:02:59]} 2. d4 {[%clk 0:03:00]}  d5 {[%clk 0:02:57]} 3. e5 {[%clk 0:03:00]}  c5 {[%clk 0:02:57]} 4. c3 {[%clk 0:03:01]}  Nc6 {[%clk 0:02:46]} 5. Nf3 {[%clk 0:03:01]}  Nge7 {[%clk 0:02:46]} 6. Bd3 {[%clk 0:03:00]}  cxd4 {[%clk 0:02:40]} 7. cxd4 {[%clk 0:03:01]}  Nf5 {[%clk 0:02:40]} 8. Be3 {[%clk 0:03:01]}  Nxe3 {[%clk 0:02:15]} 9. fxe3 {[%clk 0:03:01]}  g6 {[%clk 0:02:14]} 10. O-O {[%clk 0:03:00]}  Bh6 {[%clk 0:02:14]} 11. Qd2 {[%clk 0:02:14]}  O-O {[%clk 0:02:13]} 12. Nc3 {[%clk 0:02:13]}  f6 {[%clk 0:02:12]} 13. exf6 {[%clk 0:02:00]}  Rxf6 {[%clk 0:02:12]} 14. Kh1 {[%clk 0:01:38]}  Bd7 {[%clk 0:02:10]} 15. Rae1 {[%clk 0:01:21]}  Qe7 {[%clk 0:01:33]} 16. Qe2 {[%clk 0:01:19]}  Bg7 {[%clk 0:01:16]} 17. e4 {[%clk 0:01:19]}  dxe4 {[%clk 0:01:15]} 18. Nxe4 {[%clk 0:01:18]}  Rff8 {[%clk 0:01:14]} 19. Qe3 {[%clk 0:01:17]}  Rad8 {[%clk 0:01:10]} 20. Nc5 {[%clk 0:01:13]}  Nxd4 {[%clk 0:00:50]} 21. Nxd7 {[%clk 0:00:34]}  Qxd7 {[%clk 0:00:48]} 22. Nxd4 {[%clk 0:00:29]}  Qxd4 {[%clk 0:00:47]} 23. Qxe6+ {[%clk 0:00:28]}  Kh8 {[%clk 0:00:48]} 24. Rxf8+ {[%clk 0:00:25]}  Rxf8 {[%clk 0:00:47]} 25. Qe2 {[%clk 0:00:18]}  Qxb2 {[%clk 0:00:43]} 26. Qxb2 {[%clk 0:00:19]}  Bxb2 {[%clk 0:00:43]} 27. Rb1 {[%clk 0:00:19]}  Bd4 {[%clk 0:00:42]} 28. Rxb7 {[%clk 0:00:19]}  Rf2 {[%clk 0:00:40]} 29. Bc4 {[%clk 0:00:12]}  Rc2 {[%clk 0:00:39]} 30. Rb8+ {[%clk 0:00:09]}  Kg7 {[%clk 0:00:38]} 31. Rb7+ {[%clk 0:00:05]}  Kh6 {[%clk 0:00:38]} 32. Bf1 {[%clk 0:00:03]}  Rxa2 {[%clk 0:00:32]} 33. h3 {[%clk 0:00:03]}  Ra1 {[%clk 0:00:32]} 34. Rf7 {[%clk 0:00:03]}  Kg5 {[%clk 0:00:30]} 35. Kh2 {[%clk 0:00:03]}  Be5+ {[%clk 0:00:28]} 36. Kg1 {[%clk 0:00:00]}  h5 {[%clk 0:00:28]} 0-1


[Site "https://www.chess.com"]

[Event "Titled Tuesday Blitz July 11 Early 2023"]
[White "Stork, Oliver"]
[Black "Janaszak, Dawid"]
[WhiteFideId "12955728"]
[BlackFideId "1119206"]
[WhiteElo "2408"]
[BlackElo "2583"]
[Result "1-0"]
[Round "4"]
[TimeControl "180+2"]
[Date "2023.07.11"]
[WhiteClock "0:00:43"]
[BlackClock "0:00:52"]
[Board "128"]

1. e4 {[%clk 0:03:00]}  c5 {[%clk 0:02:58]} 2. a3 {[%clk 0:02:59]}  e5 {[%clk 0:02:55]} 3. Nf3 {[%clk 0:02:56]}  Nc6 {[%clk 0:02:50]} 4. Bc4 {[%clk 0:02:56]}  Nf6 {[%clk 0:02:49]} 5. d3 {[%clk 0:02:56]}  Be7 {[%clk 0:02:49]} 6. Nc3 {[%clk 0:02:56]}  O-O {[%clk 0:02:49]} 7. O-O {[%clk 0:02:56]}  d6 {[%clk 0:02:50]} 8. h3 {[%clk 0:02:50]}  Nd7 {[%clk 0:02:49]} 9. Be3 {[%clk 0:02:39]}  Nb6 {[%clk 0:02:47]} 10. Ba2 {[%clk 0:02:39]}  Kh8 {[%clk 0:02:47]} 11. Qd2 {[%clk 0:02:37]}  f5 {[%clk 0:02:47]} 12. exf5 {[%clk 0:02:36]}  Bxf5 {[%clk 0:02:43]} 13. Ng5 {[%clk 0:02:36]}  Qe8 {[%clk 0:02:33]} 14. Rae1 {[%clk 0:02:31]}  Qg6 {[%clk 0:02:32]} 15. f4 {[%clk 0:02:16]}  Nd4 {[%clk 0:02:25]} 16. Bxd4 {[%clk 0:02:12]}  cxd4 {[%clk 0:02:23]} 17. Nd5 {[%clk 0:02:04]}  Nxd5 {[%clk 0:02:19]} 18. Bxd5 {[%clk 0:02:05]}  h6 {[%clk 0:02:17]} 19. Nf3 {[%clk 0:01:59]}  Bxh3 {[%clk 0:02:17]} 20. fxe5 {[%clk 0:01:55]}  Rad8 {[%clk 0:02:03]} 21. Be4 {[%clk 0:01:45]}  Qg3 {[%clk 0:01:58]} 22. Nxd4 {[%clk 0:01:36]}  Bg5 {[%clk 0:01:49]} 23. Qe2 {[%clk 0:01:28]}  Be3+ {[%clk 0:01:48]} 24. Qxe3 {[%clk 0:01:25]}  Rxf1+ {[%clk 0:01:40]} 25. Kxf1 {[%clk 0:01:23]}  Qxe5 {[%clk 0:01:25]} 26. gxh3 {[%clk 0:01:19]}  Qh2 {[%clk 0:01:18]} 27. Re2 {[%clk 0:01:10]}  Qe5 {[%clk 0:01:09]} 28. Bf3 {[%clk 0:01:03]}  Qf6 {[%clk 0:01:03]} 29. Rf2 {[%clk 0:00:50]}  Qh4 {[%clk 0:01:01]} 30. Be4 {[%clk 0:00:45]}  Re8 {[%clk 0:00:57]} 31. Qf3 {[%clk 0:00:44]}  d5 {[%clk 0:00:52]} 32. Qf8+ {[%clk 0:00:43]} 1-0


[Site "https://www.chess.com"]

[Event "Titled Tuesday Blitz July 11 Early 2023"]
[White "Weishaeutel, Moritz"]
[Black "Gaal, Zsoka"]
[WhiteFideId "12967300"]
[BlackFideId "777765"]
[WhiteElo "2579"]
[BlackElo "2402"]
[Result "1-0"]
[Round "4"]
[TimeControl "180+2"]
[Date "2023.07.11"]
[WhiteClock "0:00:05"]
[BlackClock "0:00:05"]
[Board "129"]

1. e4 {[%clk 0:02:47]}  Nf6 {[%clk 0:02:59]} 2. Nc3 {[%clk 0:02:46]}  d5 {[%clk 0:02:59]} 3. e5 {[%clk 0:02:46]}  Nfd7 {[%clk 0:02:58]} 4. e6 {[%clk 0:02:47]}  fxe6 {[%clk 0:02:59]} 5. d4 {[%clk 0:02:48]}  g6 {[%clk 0:02:58]} 6. h4 {[%clk 0:02:47]}  c5 {[%clk 0:02:53]} 7. h5 {[%clk 0:02:45]}  Bg7 {[%clk 0:02:53]} 8. hxg6 {[%clk 0:02:39]}  hxg6 {[%clk 0:02:54]} 9. Rxh8+ {[%clk 0:02:40]}  Bxh8 {[%clk 0:02:55]} 10. Bd3 {[%clk 0:02:38]}  Nf8 {[%clk 0:02:52]} 11. dxc5 {[%clk 0:02:21]}  e5 {[%clk 0:02:48]} 12. Nxd5 {[%clk 0:02:21]}  Nc6 {[%clk 0:02:22]} 13. Bg5 {[%clk 0:02:11]}  Be6 {[%clk 0:02:21]} 14. c4 {[%clk 0:02:03]}  Qd7 {[%clk 0:02:11]} 15. Be4 {[%clk 0:01:29]}  O-O-O {[%clk 0:02:07]} 16. Qa4 {[%clk 0:01:25]}  Kb8 {[%clk 0:01:49]} 17. O-O-O {[%clk 0:01:24]}  Bf5 {[%clk 0:01:20]} 18. Ne3 {[%clk 0:01:02]}  Nd4 {[%clk 0:01:04]} 19. Qxd7 {[%clk 0:01:00]}  Rxd7 {[%clk 0:01:01]} 20. f3 {[%clk 0:00:39]}  Bxe4 {[%clk 0:00:39]} 21. fxe4 {[%clk 0:00:39]}  Nfe6 {[%clk 0:00:39]} 22. Nf3 {[%clk 0:00:23]}  Nxc5 {[%clk 0:00:36]} 23. Nd5 {[%clk 0:00:17]}  Nxe4 {[%clk 0:00:31]} 24. Bxe7 {[%clk 0:00:08]}  Bg7 {[%clk 0:00:15]} 25. Nxd4 {[%clk 0:00:07]}  exd4 {[%clk 0:00:15]} 26. Re1 {[%clk 0:00:08]}  Nf2 {[%clk 0:00:11]} 27. Bd6+ {[%clk 0:00:07]}  Kc8 {[%clk 0:00:09]} 28. Re8+ {[%clk 0:00:03]}  Rd8 {[%clk 0:00:10]} 29. Re7 {[%clk 0:00:04]}  Bh6+ {[%clk 0:00:10]} 30. Bf4 {[%clk 0:00:03]}  Bxf4+ {[%clk 0:00:10]} 31. Nxf4 {[%clk 0:00:04]}  d3 {[%clk 0:00:10]} 32. Kd2 {[%clk 0:00:04]}  Rf8 {[%clk 0:00:04]} 33. Nxg6 {[%clk 0:00:05]}  Rg8 {[%clk 0:00:04]} 34. Ne5 {[%clk 0:00:05]}  Rxg2 {[%clk 0:00:04]} 35. Nxd3 {[%clk 0:00:05]}  Nxd3+ {[%clk 0:00:03]} 36. Kxd3 {[%clk 0:00:06]}  Rxb2 {[%clk 0:00:04]} 37. a4 {[%clk 0:00:04]}  Ra2 {[%clk 0:00:04]} 38. Kc3 {[%clk 0:00:03]}  Rxa4 {[%clk 0:00:04]} 39. Kb3 {[%clk 0:00:04]}  Ra6 {[%clk 0:00:04]} 40. Kb4 {[%clk 0:00:04]}  Rc6 {[%clk 0:00:05]} 41. Kb5 {[%clk 0:00:05]}  Rc7 {[%clk 0:00:04]} 42. Re8+ {[%clk 0:00:05]}  Kd7 {[%clk 0:00:05]} 43. Rh8 {[%clk 0:00:06]}  Rc6 {[%clk 0:00:04]} 44. Rh7+ {[%clk 0:00:06]}  Kc8 {[%clk 0:00:04]} 45. Rh8+ {[%clk 0:00:07]}  Kc7 {[%clk 0:00:04]} 46. Rh7+ {[%clk 0:00:08]}  Kb8 {[%clk 0:00:05]} 47. Rh8+ {[%clk 0:00:08]}  Rc8 {[%clk 0:00:06]} 48. Rh1 {[%clk 0:00:08]}  a6+ {[%clk 0:00:05]} 49. Kb4 {[%clk 0:00:09]}  Rc6 {[%clk 0:00:05]} 50. Rh8+ {[%clk 0:00:09]}  Kc7 {[%clk 0:00:05]} 51. Rh7+ {[%clk 0:00:10]}  Kb6 {[%clk 0:00:06]} 52. c5+ {[%clk 0:00:09]}  Ka7 {[%clk 0:00:05]} 53. Rd7 {[%clk 0:00:09]}  Rf6 {[%clk 0:00:04]} 54. Rh7 {[%clk 0:00:08]}  Rf4+ {[%clk 0:00:05]} 55. Kb3 {[%clk 0:00:09]}  Kb8 {[%clk 0:00:04]} 56. Rg7 {[%clk 0:00:05]}  Rd4 {[%clk 0:00:04]} 57. Rh7 {[%clk 0:00:05]}  Ka8 {[%clk 0:00:02]} 58. Rg7 {[%clk 0:00:05]}  Kb8 {[%clk 0:00:03]} 59. Rh7 {[%clk 0:00:05]}  Rd8 {[%clk 0:00:04]} 60. Kb4 {[%clk 0:00:04]}  Rc8 {[%clk 0:00:04]} 61. Rg7 {[%clk 0:00:04]}  Rc6 {[%clk 0:00:05]} 62. Rh7 {[%clk 0:00:04]}  Rf6 {[%clk 0:00:05]} 63. Rg7 {[%clk 0:00:04]}  Rf4+ {[%clk 0:00:05]} 64. Kb3 {[%clk 0:00:03]}  Rh4 {[%clk 0:00:06]} 65. Rf7 {[%clk 0:00:03]}  Rh6 {[%clk 0:00:05]} 66. Rg7 {[%clk 0:00:03]}  Rh5 {[%clk 0:00:04]} 67. Kb4 {[%clk 0:00:03]}  Rh4+ {[%clk 0:00:03]} 68. Kb3 {[%clk 0:00:02]}  Kc8 {[%clk 0:00:03]} 69. Rg8+ {[%clk 0:00:02]}  Kc7 {[%clk 0:00:04]} 70. Rg6 {[%clk 0:00:02]}  Re4 {[%clk 0:00:03]} 71. Rf6 {[%clk 0:00:02]}  Rd4 {[%clk 0:00:02]} 72. Rg6 {[%clk 0:00:02]}  Rd7 {[%clk 0:00:03]} 73. Kc4 {[%clk 0:00:02]}  Re7 {[%clk 0:00:03]} 74. Rh6 {[%clk 0:00:03]}  Rg7 {[%clk 0:00:03]} 75. Rf6 {[%clk 0:00:03]}  Rg4+ {[%clk 0:00:04]} 76. Kb3 {[%clk 0:00:02]}  Re4 {[%clk 0:00:04]} 77. Kc3 {[%clk 0:00:03]}  Kd7 {[%clk 0:00:04]} 78. Kd3 {[%clk 0:00:02]}  Re6 {[%clk 0:00:05]} 79. Rf7+ {[%clk 0:00:02]}  Kc6 {[%clk 0:00:05]} 80. Rf5 {[%clk 0:00:02]}  Rh6 {[%clk 0:00:05]} 81. Kc4 {[%clk 0:00:02]}  Rh4+ {[%clk 0:00:05]} 82. Kb3 {[%clk 0:00:03]}  Re4 {[%clk 0:00:05]} 83. Kc3 {[%clk 0:00:03]}  Rh4 {[%clk 0:00:05]} 84. Kb3 {[%clk 0:00:03]}  Rd4 {[%clk 0:00:05]} 85. Kc3 {[%clk 0:00:02]}  Rd5 {[%clk 0:00:05]} 86. Rf8 {[%clk 0:00:02]}  Kxc5 {[%clk 0:00:06]} 87. Rd8 {[%clk 0:00:03]}  Kb6 {[%clk 0:00:06]} 88. Rxd5 {[%clk 0:00:02]}  Kc6 {[%clk 0:00:06]} 89. Rd4 {[%clk 0:00:03]}  Kc5 {[%clk 0:00:06]} 90. Rh4 {[%clk 0:00:03]}  b5 {[%clk 0:00:06]} 91. Rh5+ {[%clk 0:00:04]}  Kb6 {[%clk 0:00:05]} 92. Rh6+ {[%clk 0:00:04]}  Kc5 {[%clk 0:00:06]} 93. Rxa6 {[%clk 0:00:04]}  b4+ {[%clk 0:00:06]} 94. Kb3 {[%clk 0:00:04]}  Kb5 {[%clk 0:00:07]} 95. Ra4 {[%clk 0:00:05]}  Kc5 {[%clk 0:00:05]} 96. Rxb4 {[%clk 0:00:05]} 1-0


[Site "https://www.chess.com"]

[Event "Titled Tuesday Blitz July 11 Early 2023"]
[White "Rian, Kapriaga"]
[Black "Tologon tegin, Semetei"]
[WhiteFideId "7103263"]
[BlackFideId "13800574"]
[WhiteElo "2395"]
[BlackElo "2572"]
[Result "0-1"]
[Round "4"]
[TimeControl "180+2"]
[Date "2023.07.11"]
[WhiteClock "0:00:00"]
[BlackClock "0:00:03"]
[Board "132"]

1. d4 {[%clk 0:02:56]}  g6 {[%clk 0:02:56]} 2. Nf3 {[%clk 0:02:55]}  Bg7 {[%clk 0:02:55]} 3. c4 {[%clk 0:02:55]}  d6 {[%clk 0:02:46]} 4. Nc3 {[%clk 0:02:55]}  Nd7 {[%clk 0:02:40]} 5. e4 {[%clk 0:02:55]}  e5 {[%clk 0:02:39]} 6. d5 {[%clk 0:02:54]}  Ne7 {[%clk 0:02:38]} 7. h3 {[%clk 0:02:52]}  a5 {[%clk 0:02:36]} 8. Be2 {[%clk 0:02:47]}  Nc5 {[%clk 0:02:36]} 9. Be3 {[%clk 0:02:44]}  b6 {[%clk 0:02:35]} 10. a3 {[%clk 0:02:40]}  f5 {[%clk 0:02:29]} 11. Nd2 {[%clk 0:02:33]}  fxe4 {[%clk 0:02:11]} 12. Ndxe4 {[%clk 0:02:29]}  O-O {[%clk 0:02:08]} 13. Bg4 {[%clk 0:02:21]}  Nf5 {[%clk 0:02:06]} 14. O-O {[%clk 0:02:13]}  Bd7 {[%clk 0:01:58]} 15. b4 {[%clk 0:02:08]}  axb4 {[%clk 0:01:57]} 16. axb4 {[%clk 0:02:09]}  Rxa1 {[%clk 0:01:56]} 17. Qxa1 {[%clk 0:02:09]}  Nb3 {[%clk 0:01:55]} 18. Qd1 {[%clk 0:01:57]}  Nbd4 {[%clk 0:01:52]} 19. Bxf5 {[%clk 0:01:54]}  gxf5 {[%clk 0:01:41]} 20. Nd2 {[%clk 0:01:40]}  Qh4 {[%clk 0:01:17]} 21. f4 {[%clk 0:01:33]}  Ra8 {[%clk 0:00:55]} 22. Bxd4 {[%clk 0:01:15]}  exd4 {[%clk 0:00:44]} 23. Nb5 {[%clk 0:01:10]}  Bxb5 {[%clk 0:00:43]} 24. cxb5 {[%clk 0:01:09]}  Ra2 {[%clk 0:00:38]} 25. Qe2 {[%clk 0:00:55]}  Qf6 {[%clk 0:00:19]} 26. Qe8+ {[%clk 0:00:51]}  Bf8 {[%clk 0:00:17]} 27. Nf3 {[%clk 0:00:46]}  d3 {[%clk 0:00:15]} 28. Rd1 {[%clk 0:00:34]}  Re2 {[%clk 0:00:14]} 29. Qh5 {[%clk 0:00:28]}  Bg7 {[%clk 0:00:05]} 30. Rxd3 {[%clk 0:00:19]}  h6 {[%clk 0:00:05]} 31. Ng5 {[%clk 0:00:08]}  Re1+ {[%clk 0:00:04]} 32. Kf2 {[%clk 0:00:08]}  Rb1 {[%clk 0:00:03]} 33. Ne6 {[%clk 0:00:00]}  Rxb4 {[%clk 0:00:03]} 0-1


[Site "https://www.chess.com"]